bitfinex/quotes_ETHUSD_20260114
["timestamp","ask_amount","ask_price","bid_price","bid_amount"]
[1768411615286,4.27893334,3371.0,3370.0,5.2700614]
[1768411616375,2.96621481,3371.3,3370.1,2.30274004]
[1768411616705,0.397,3371.2,3370.3,2.30274004]
[1768411617014,0.397,3371.2,3370.4,2.30274004]
[1768411617176,2.96639079,3371.1,3370.4,2.30274004]
[1768411617375,2.96639079,3371.1,3370.2,2.96717156]
[1768411617588,0.002,3370.7,3370.3,0.68077835]
[1768411617902,0.002,3370.7,3370.4,5.28364996]
[1768411618710,0.002,3371.0,3370.4,5.28364996]
[1768411619007,0.002,3371.0,3370.4,5.26974459]
[1768411619602,0.002,3371.0,3370.4,2.30274004]
[1768411621212,0.002,3371.0,3370.1,5.26992322]
[1768411621389,0.002,3371.0,3370.2,6.13294219]
[1768411621593,0.002,3371.0,3370.3,2.30274004]
[1768411621897,0.002,3371.0,3370.4,5.2697461]
[1768411622510,0.002,3371.0,3370.5,2.31664142]
[1768411622815,3.36259905,3372.0,3370.8,2.30274004]
[1768411623019,3.36259905,3372.0,3371.0,2.30274004]
[1768411623639,8.74965775,3372.0,3370.9,0.230274]
[1768411624426,8.74965775,3372.0,3370.9,5.49957591]
[1768411624645,2.96756429,3372.1,3371.0,2.69474004]
[1768411624810,2.96756429,3372.1,3371.2,2.30274004]
[1768411626431,0.03706998,3372.0,3371.2,2.30274004]
[1768411626740,5.93313622,3372.1,3371.2,2.30274004]
[1768411626926,0.03706998,3372.0,3370.9,2.53301404]
[1768411627132,8.35459587,3372.1,3370.9,2.53301404]
[1768411627334,0.87515959,3372.0,3371.0,2.30274004]
[1768411627940,2.965687,3371.9,3371.0,2.30274004]
[1768411628529,5.931374,3371.9,3371.0,2.30274004]
[1768411630059,2.965687,3371.9,3371.0,2.30274004]
[1768411630440,5.931374,3371.9,3371.0,2.30274004]
[1768411630736,0.002,3371.8,3371.0,2.30274004]
[1768411630959,0.002,3371.8,3371.0,2.89189771]
[1768411631161,0.002,3371.8,3371.0,2.30274004]
[1768411637667,0.002,3372.1,3371.6,2.30274004]
[1768411638365,0.397,3372.6,3371.8,2.30274004]
[1768411638874,3.36207792,3372.6,3371.8,2.30274004]
[1768411639174,0.397,3372.6,3371.8,2.30274004]
[1768411639569,0.002,3372.7,3372.3,2.30274004]
[1768411640470,2.22546025,3372.6,3371.7,0.392]
[1768411640638,0.03706449,3372.5,3371.7,3.12404013]
[1768411641037,0.03706449,3372.5,3371.8,2.17839941]
[1768411641270,0.002,3372.7,3371.8,2.17839941]
[1768411642083,0.399,3373.3,3372.3,2.24591776]
[1768411642290,3.00161152,3373.2,3372.3,2.24591776]
[1768411642587,6.52758777,3373.2,3372.3,2.24591776]
[1768411642787,0.03705789,3373.1,3372.3,2.24591776]
[1768411642967,2.24866168,3373.1,3371.8,2.24591776]
[1768411643167,2.21160379,3373.1,3371.8,2.24591776]
[1768411643568,2.24866278,3373.0,3371.8,2.24591776]
[1768411643771,2.21160379,3372.8,3371.8,2.24591776]
[1768411643961,2.60860379,3372.8,3371.8,2.24591776]
[1768411644689,2.96498354,3372.7,3371.8,2.24591776]
[1768411645080,2.21160379,3372.6,3371.5,2.24591776]
[1768411645259,2.24866718,3372.6,3371.3,5.21208842]
[1768411645458,3.06916722,3372.5,3371.5,2.24591776]
[1768411645663,0.85756343,3372.5,3371.5,2.24591776]
[1768411646761,2.9652473,3372.4,3371.5,2.24591776]
[1768411646961,0.397,3372.3,3371.5,2.24591776]
[1768411647164,0.397,3372.3,3371.2,2.24591776]
[1768411647493,0.397,3372.3,3371.0,3.35840926]
[1768411647494,2.21160379,3372.2,3371.0,0.392]
[1768411647673,2.21160379,3372.2,3371.0,2.63791776]
[1768411647874,0.397,3372.3,3371.2,2.24591776]
[1768411648178,2.60860379,3372.3,3371.2,2.24591776]
[1768411648569,2.60860379,3372.3,3371.0,0.392]
[1768411648776,5.17720284,3372.0,3370.9,5.60443466]
[1768411649297,5.17720284,3372.0,3370.9,2.63791776]
[1768411649594,8.14280189,3372.0,3370.9,2.63791776]
[1768411650060,2.21160379,3371.9,3370.9,2.63791776]
[1768411650694,2.60860379,3371.8,3370.9,0.392]
[1768411651000,4.21678718,3371.8,3370.9,2.63791776]
[1768411651364,1.25098019,3371.8,3371.0,2.24591776]
[1768411651564,4.2168237,3371.8,3371.0,2.24591776]
[1768411651766,6.42842749,3371.8,3370.9,0.392]
[1768411652001,9.394271,3371.8,3370.9,0.392]
[1768411652200,0.9394271,3371.7,3370.9,0.392]
[1768411653066,3.90530619,3371.7,3370.9,0.392]
[1768411653873,0.9394271,3371.7,3370.9,0.392]
[1768411654075,3.90529155,3371.7,3370.9,2.63791776]
[1768411655186,6.871156,3371.7,3370.9,2.63791776]
[1768411655606,3.90529155,3371.7,3370.9,2.63791776]
[1768411656516,0.9394271,3371.7,3370.9,2.63791776]
[1768411657012,3.90534978,3371.7,3371.2,0.001]
[1768411658080,0.9394271,3371.7,3371.2,0.001]
[1768411658297,3.36280782,3371.8,3371.2,0.001]
[1768411660695,0.397,3371.8,3371.2,0.001]
[1768411660898,3.36277716,3371.8,3371.2,0.001]
[1768411661582,3.36278209,3371.8,3371.2,0.001]
[1768411662005,2.21160379,3371.7,3371.2,0.001]
[1768411662190,3.06562059,3371.7,3371.2,0.001]
[1768411662591,2.21160379,3371.6,3371.2,0.001]
[1768411662813,2.21160379,3371.4,3370.5,2.24591776]
[1768411663318,2.96621481,3371.3,3370.5,2.24591776]
[1768411664626,5.57477079,3371.4,3370.5,2.24591776]
[1768411664794,6.51425624,3371.4,3370.5,2.24591776]
[1768411665123,6.5142893,3371.4,3370.6,2.24591776]
[1768411665630,9.48048936,3371.4,3370.6,2.24591776]
[1768411666133,6.5142893,3371.4,3370.6,2.24591776]
[1768411666334,9.48048936,3371.4,3370.6,2.24591776]
[1768411666532,0.94804894,3371.3,3370.6,2.24591776]
[1768411666840,2.21160379,3371.2,3370.0,2.24691776]
[1768411667133,2.21160379,3371.2,3370.2,2.24591776]
[1768411667328,2.21160379,3371.2,3370.3,5.2130079]
[1768411667818,5.17792041,3371.2,3370.4,2.24591776]
[1768411668020,6.65471992,3371.2,3370.4,2.24591776]
[1768411669301,6.65471992,3371.2,3370.8,0.001]
[1768411669519,6.41386186,3371.2,3370.8,0.001]
[1768411669754,2.21160379,3371.1,3370.8,0.001]
[1768411671424,4.44306488,3371.2,3370.8,0.001]
[1768411672430,1.47675671,3371.2,3370.8,0.001]
[1768411672810,4.44308985,3371.2,3370.8,0.001]
[1768411674129,4.44306778,3371.2,3370.8,0.001]
[1768411674439,1.22932958,3371.1,3370.2,2.08250314]
[1768411674638,5.14108682,3371.2,3370.2,2.08250314]
[1768411674939,5.53792882,3371.4,3370.3,5.04958338]
[1768411675124,2.965687,3371.9,3370.5,2.08250314]
[1768411675326,0.398,3372.0,3370.8,2.08250314]
[1768411676137,0.398,3372.0,3371.0,2.08250314]
[1768411676451,2.96533585,3372.3,3371.2,2.08250314]
[1768411676596,0.03706778,3372.2,3371.2,2.08250314]
[1768411677405,5.9306717,3372.3,3371.2,2.08250314]
[1768411678364,2.17476503,3371.9,3370.7,2.9666786]
[1768411678517,7.45322804,3371.7,3370.7,2.379171]
[1768411679328,2.17476503,3371.7,3370.7,2.379171]
[1768411679516,2.17476503,3371.6,3370.7,0.29666786]
[1768411680354,2.17476503,3371.4,3370.4,0.393]
[1768411680556,2.17476503,3371.2,3370.1,2.08250314]
[1768411680956,0.398,3371.3,3370.2,2.08250314]
[1768411681135,2.96603885,3371.5,3370.4,2.08250314]
[1768411681335,0.398,3371.5,3370.6,2.08250314]
[1768411681535,0.398,3371.5,3370.5,0.52024653]
[1768411681536,0.398,3371.5,3371.0,0.001]
[1768411682055,0.002,3371.3,3371.0,0.001]
[1768411682744,2.17676503,3371.3,3371.0,0.001]
[1768411682944,0.03707878,3371.2,3370.3,0.393]
[1768411683143,0.81460975,3371.1,3370.3,0.393]
[1768411683554,0.81460975,3371.1,3370.3,2.47550314]
[1768411684637,0.002,3371.3,3370.3,2.47550314]
[1768411687586,2.17476503,3371.0,3369.3,2.08250314]
[1768411687751,1.30606058,3370.9,3369.5,2.08250314]
[1768411687951,0.90806058,3370.8,3369.6,2.08250314]
[1768411688250,0.63329567,3370.7,3369.6,2.08250314]
[1768411688562,0.63329567,3370.6,3369.7,2.08250314]
[1768411688766,0.63329567,3370.5,3369.7,2.08250314]
[1768411688952,0.63329567,3370.4,3369.7,2.08250314]
[1768411689276,0.63329567,3370.3,3369.7,2.08250314]
[1768411689470,2.96692254,3370.5,3369.7,2.08250314]
[1768411689672,0.63267968,3370.4,3369.7,2.08250314]
[1768411689976,2.80744471,3370.3,3369.6,0.80182231]
[1768411690173,1.03067968,3370.2,3368.9,2.08250314]
[1768411690474,0.63267968,3370.1,3369.2,2.08250314]
[1768411690887,6.56739778,3370.0,3369.2,2.08250314]
[1768411691177,2.96735905,3370.0,3369.2,2.08250314]
[1768411691576,0.398,3370.1,3369.3,2.08250314]
[1768411692475,2.96700688,3370.4,3369.3,2.08250314]
[1768411692678,2.17476503,3371.1,3369.5,2.08250314]
[1768411692864,2.96589375,3371.7,3369.7,2.08250314]
[1768411692865,6.56486584,3371.0,3369.7,2.08250314]
[1768411693182,1.02990828,3370.9,3369.9,2.08250314]
[1768411693474,1.32819486,3370.8,3369.9,2.08250314]
[1768411693677,6.33095756,3371.0,3369.9,2.47550314]
[1768411693880,0.63203065,3370.9,3369.9,2.47550314]
[1768411694258,2.96636058,3371.2,3370.1,2.08250314]
[1768411694458,0.63210839,3371.1,3370.1,2.08250314]
[1768411694775,0.002,3371.3,3371.0,2.08250314]
[1768411700990,0.002,3371.3,3370.6,0.393]
[1768411701176,0.002,3371.3,3370.7,2.01181747]
[1768411701372,5.28073674,3371.3,3370.6,0.393]
[1768411701574,0.52807367,3371.2,3370.5,0.393]
[1768411701775,0.52807367,3371.2,3370.5,2.40481747]
[1768411702959,0.002,3371.3,3370.6,2.01181747]
[1768411707275,0.002,3371.3,3370.8,2.01281747]
[1768411707479,0.002,3371.3,3371.0,2.01181747]
[1768411708189,6.42374755,3372.5,3371.5,2.01181747]
[1768411708398,2.9652473,3372.4,3371.5,2.01181747]
[1768411708568,0.97869948,3372.3,3371.7,2.01181747]
[1768411709280,2.96542316,3372.2,3371.7,2.01181747]
[1768411709591,0.97869948,3372.3,3371.7,2.01181747]
[1768411709592,3.94407372,3372.3,3371.7,2.01181747]
[1768411709781,2.96528356,3372.4,3371.7,2.01181747]
[1768411710379,2.96507145,3372.6,3371.7,2.01181747]
[1768411711373,5.93210689,3372.7,3371.7,2.01181747]
[1768411711774,5.27873674,3372.5,3371.7,2.01181747]
[1768411711997,5.93210689,3372.7,3371.7,2.01181747]
[1768411712162,5.27873674,3372.5,3371.7,2.01181747]
[1768411712365,1.45736845,3372.6,3371.7,2.01181747]
[1768411713188,2.12256064,3371.7,3370.3,5.90181747]
[1768411713496,5.27873674,3370.9,3370.0,2.01181747]
[1768411713873,2.96639079,3371.1,3370.0,2.01181747]
[1768411714481,5.93278158,3371.1,3370.0,2.01181747]
[1768411714679,2.96639079,3371.1,3370.0,2.01181747]
[1768411715881,2.96639079,3371.1,3370.0,4.97913715]
[1768411716402,5.93278158,3371.1,3370.0,4.97913715]
[1768411716805,5.93278158,3371.1,3370.0,2.01181747]
[1768411716976,5.93278158,3371.1,3370.0,4.97917335]
[1768411717706,5.93278158,3371.1,3370.0,4.97915139]
[1768411718004,2.96639079,3371.1,3370.1,2.01181747]
[1768411718203,2.96639079,3371.1,3370.2,2.01181747]
[1768411718414,2.96639079,3371.1,3370.3,2.40481747]
[1768411718594,2.96621481,3371.3,3370.3,2.40481747]
[1768411718909,5.93242962,3371.3,3370.3,2.40481747]
[1768411719080,2.96621481,3371.3,3370.3,2.40481747]
[1768411719281,2.96621481,3371.3,3370.4,0.01390001]
[1768411719483,3.81150454,3371.3,3370.3,2.40481747]
[1768411719682,3.81150454,3371.3,3370.4,0.01390001]
[1768411720093,3.81150454,3371.3,3370.3,2.40481747]
[1768411720287,6.77771935,3371.3,3370.3,2.40481747]
[1768411720508,0.890028,3371.2,3370.3,2.40481747]
[1768411720939,9.12183735,3370.5,3368.8,0.09032472]
[1768411721110,2.52056064,3370.4,3369.4,0.09032472]
[1768411721409,2.52056064,3370.4,3369.0,0.09032472]
[1768411721598,2.12256064,3370.2,3369.0,0.09032472]
[1768411721805,2.12256064,3370.2,3368.9,0.393]
[1768411721989,2.12256064,3370.0,3368.8,0.09032472]
[1768411722182,2.12256064,3369.8,3368.5,0.09032472]
[1768411722906,2.12256064,3369.8,3368.7,0.09032472]
[1768411723203,2.3746167,3369.7,3368.7,0.09032472]
[1768411724377,2.3746167,3369.7,3368.9,0.09032472]
[1768411724378,5.9354226,3369.6,3368.9,0.09032472]
[1768411726022,0.002,3373.3,3369.7,1.22701144]
[1768411726231,2.96628749,3373.5,3371.1,1.40541024]
[1768411726394,0.002,3373.5,3373.3,0.002]
[1768411726715,0.002,3373.5,3372.8,0.10623833]
[1768411727418,0.002,3373.5,3372.5,0.393]
[1768411727789,0.002,3373.5,3372.5,2.54237194]
[1768411728023,0.002,3373.5,3372.6,2.14937194]
[1768411728313,0.002,3373.5,3372.5,0.393]
[1768411728529,2.21288536,3373.0,3371.2,0.128]
[1768411728697,2.21288536,3373.0,3370.9,2.01181747]
[1768411728698,0.393,3372.5,3370.9,2.01181747]
[1768411728890,0.03706559,3372.4,3371.1,2.01181747]
[1768411729216,2.72086953,3372.9,3371.1,2.01181747]
[1768411729217,0.59830889,3372.9,3371.1,2.01181747]
[1768411729516,2.21288536,3372.8,3371.1,0.393]
[1768411729893,2.12256064,3372.8,3371.1,0.393]
[1768411730418,2.96498354,3372.7,3371.1,3.35936929]
[1768411730620,2.96498354,3372.7,3371.1,6.32576008]
[1768411731017,2.96498354,3372.7,3371.1,3.35936929]
[1768411731223,0.84503541,3372.6,3371.1,0.393]
[1768411731720,0.84503541,3372.6,3371.1,3.35936056]
[1768411732103,0.84503541,3372.6,3371.1,0.393]
[1768411732505,2.96515937,3372.5,3371.1,0.393]
[1768411733621,2.96515937,3372.5,3371.0,0.393]
[1768411733798,0.38101948,3372.4,3371.1,2.96637291]
[1768411734003,0.38101948,3372.4,3371.0,0.393]
[1768411734197,0.38101948,3372.4,3371.1,2.96637405]
[1768411734924,3.34627908,3372.4,3371.1,2.96637405]
[1768411735127,0.38101948,3372.4,3371.2,2.41105216]
[1768411735327,3.36280773,3372.9,3371.3,2.98809478]
[1768411735503,0.002,3372.3,3371.3,2.98809478]
[1768411736819,0.002,3372.3,3371.3,5.95426438]
[1768411738041,0.002,3372.3,3371.4,0.01387801]
[1768411738204,0.002,3372.3,3371.5,0.89343572]
[1768411739406,0.002,3372.3,3371.5,3.85942519]
[1768411739707,0.002,3372.3,3371.5,0.89343572]
[1768411740305,0.002,3372.3,3371.0,2.96641333]
[1768411740612,2.24476583,3372.1,3370.5,2.80405216]
[1768411740833,2.24476583,3372.1,3370.7,2.96667899]
[1768411741149,2.24476583,3371.9,3370.5,0.393]
[1768411741317,0.81759639,3371.8,3370.5,0.393]
[1768411741648,0.81759639,3371.8,3370.5,3.35989518]
[1768411742006,0.8021896,3371.8,3370.5,6.32681403]
[1768411742348,0.66346632,3371.8,3370.5,6.32681403]
[1768411743406,3.36345251,3372.2,3370.5,8.73786619]
[1768411743600,2.24676583,3372.3,3370.6,2.41105216]
[1768411743835,0.4,3372.3,3370.8,2.41105216]
[1768411744031,0.4,3372.3,3371.0,2.41105216]
[1768411744828,3.36541423,3372.3,3371.0,2.41105216]
[1768411745033,0.4,3372.3,3371.1,6.18776873]
[1768411745202,3.36535049,3372.3,3371.1,0.24110522]
[1768411746461,0.002,3372.3,3371.1,2.65215738]
[1768411746608,0.002,3372.3,3371.3,2.41105216]
[1768411746804,0.002,3372.3,3371.1,0.24110522]
[1768411746805,0.002,3372.3,3371.4,2.6762679]
[1768411747316,0.002,3372.6,3371.6,2.41105216]
[1768411748021,0.4,3372.6,3371.6,2.41105216]
[1768411748618,0.002,3372.6,3371.6,2.41105216]
[1768411748807,0.398,3372.5,3371.6,2.41105216]
[1768411749009,0.002,3372.6,3371.8,2.41105216]
[1768411749313,0.002,3372.6,3371.9,2.965687]
[1768411749823,0.398,3372.8,3371.9,2.965687]
[1768411750931,0.398,3372.8,3371.8,2.96576839]
[1768411752714,3.3629307,3372.8,3371.7,0.86094142]
[1768411752909,6.3278614,3372.8,3371.8,0.38268385]
[1768411753104,3.3629307,3372.8,3371.6,2.96594197]
[1768411753342,3.3629307,3372.8,3371.4,0.001]
[1768411753842,3.3629307,3372.8,3371.4,2.41205216]
[1768411755330,3.3629307,3372.8,3371.5,7.51764124]
[1768411755758,3.3629307,3372.8,3371.5,4.55160239]
[1768411756065,3.3629307,3372.8,3371.6,0.99297634]
[1768411756066,4.22018387,3372.8,3371.6,0.99297634]
[1768411756438,4.22018387,3372.8,3371.4,2.41205216]
[1768411756439,2.24476583,3372.7,3371.4,2.96712683]
[1768411756862,2.24476583,3372.5,3371.4,0.001]
[1768411757242,5.21001313,3372.4,3371.4,0.001]
[1768411757650,8.17526043,3372.4,3371.4,0.001]
[1768411758674,2.24476583,3372.3,3371.4,0.001]
[1768411758968,3.46029187,3372.2,3371.4,0.001]
[1768411759347,2.24476583,3372.0,3371.4,0.001]
[1768411759546,2.24476583,3372.0,3370.3,0.001]
[1768411759865,2.33509055,3372.0,3370.3,0.001]
[1768411760058,2.24476583,3372.0,3370.4,2.96696769]
[1768411760255,2.24476583,3372.0,3370.3,2.968037]
[1768411760462,2.14058434,3371.8,3370.4,0.59352855]
[1768411760959,2.14058434,3371.8,3370.3,0.001]
[1768411761160,2.14058434,3371.8,3370.3,2.96807712]
[1768411761359,2.14058434,3371.7,3370.3,0.001]
[1768411761564,2.14058434,3371.5,3370.0,5.9317181]
[1768411762160,2.14058434,3371.5,3370.1,2.13836892]
[1768411762363,2.98759776,3371.5,3370.2,0.8070087]
[1768411763765,5.95368334,3371.5,3370.3,2.96709491]
[1768411763969,8.91976892,3371.5,3370.2,3.77416098]
[1768411764471,2.14058434,3371.4,3370.2,3.77416098]
[1768411764671,2.14058434,3371.4,3370.3,0.59125299]
[1768411764975,2.14058434,3371.4,3369.8,2.96745098]
[1768411765781,2.14058434,3370.9,3369.3,2.96797554]
[1768411765957,2.14058434,3370.7,3369.3,2.96797554]
[1768411766278,2.14058434,3370.7,3369.3,5.93595108]
[1768411766481,2.14058434,3370.7,3369.4,0.807432]
[1768411767548,5.10741517,3370.6,3369.5,2.96779937]
[1768411767950,2.14058434,3370.6,3369.5,2.96779937]
[1768411768682,3.36469571,3370.8,3369.5,2.96779937]
[1768411768885,3.36469571,3370.8,3369.6,0.37752314]
[1768411769549,3.36469571,3370.8,3369.7,2.96762323]
[1768411769744,2.14058434,3370.7,3369.6,0.37752314]
[1768411770283,2.14058434,3370.7,3369.6,3.34520349]
[1768411770945,2.14058434,3370.7,3368.8,2.13836892]
[1768411771149,2.14058434,3370.7,3369.1,2.96809647]
[1768411772151,2.14058434,3370.5,3368.9,5.93664513]
[1768411773182,2.14058434,3370.3,3368.9,5.93664513]
[1768411773352,0.398,3370.2,3368.9,5.93664513]
[1768411773681,0.398,3370.2,3369.0,1.19650141]
[1768411774550,0.398,3370.2,3369.9,0.001]
[1768411775151,3.36520443,3370.2,3369.9,0.001]
[1768411775988,5.50578877,3370.2,3369.9,0.001]
[1768411776285,2.14058434,3370.1,3369.9,0.001]
[1768411776681,2.14058434,3370.0,3369.9,0.001]
[1768411778001,5.10794339,3370.0,3369.9,0.001]
[1768411778198,0.398,3370.0,3369.9,0.001]
[1768411779082,2.14058434,3370.3,3369.9,0.001]
[1768411779289,0.398,3370.2,3369.9,0.001]
[1768411781179,0.09032472,3371.0,3369.9,0.001]
[1768411781180,2.14058434,3370.6,3369.9,0.001]
[1768411781497,0.61205843,3370.5,3369.9,0.001]
[1768411781690,2.96700688,3370.4,3369.9,0.001]
[1768411781894,0.21405843,3370.5,3369.9,0.001]
[1768411782206,0.398,3370.4,3369.9,0.001]
[1768411782502,0.398,3370.3,3369.9,0.001]
[1768411784202,5.10706312,3371.0,3369.9,0.001]
[1768411784391,0.398,3370.9,3369.9,0.001]
[1768411784595,2.53858434,3370.9,3369.9,0.5117016]
[1768411784915,2.53858434,3370.9,3369.9,0.001]
[1768411785998,2.14058434,3370.7,3369.9,0.001]
[1768411786195,2.96683083,3370.6,3369.9,0.001]
[1768411786389,5.10741517,3370.6,3369.9,0.001]
[1768411787414,0.398,3370.5,3369.9,0.001]
[1768411787588,0.398,3370.5,3369.9,0.21493689]
[1768411787903,0.398,3370.5,3369.9,0.001]
[1768411788609,3.36494951,3370.5,3369.9,0.001]
[1768411789186,2.17767192,3370.4,3369.9,0.001]
[1768411789408,2.14058434,3370.4,3369.9,0.001]
[1768411790510,5.10763617,3370.4,3369.9,0.001]
[1768411790716,5.95508367,3370.4,3369.9,0.001]
[1768411791612,2.16204884,3370.3,3369.0,5.06201848]
[1768411791908,2.16204884,3370.3,3369.0,2.0938047]
[1768411792207,2.16204884,3370.3,3369.0,5.062008]
[1768411792383,5.12923179,3370.2,3369.0,5.062008]
[1768411792586,6.06340977,3370.2,3369.1,0.80303232]
[1768411793809,6.06340977,3370.2,3369.1,2.89683702]
[1768411794395,6.06341758,3370.2,3369.1,5.86492689]
[1768411794781,6.06343094,3370.2,3369.1,5.86492689]
[1768411795114,6.06343094,3370.2,3369.2,2.0938047]
[1768411795320,6.06343094,3370.2,3368.0,3.89]
[1768411795321,2.16204884,3370.0,3368.0,3.89]
[1768411795483,2.16204884,3369.8,3368.4,2.0938047]
[1768411795682,2.16204884,3369.8,3368.7,2.0938047]
[1768411796094,2.16204884,3369.8,3368.7,5.06230645]
[1768411796424,0.398,3369.7,3369.2,2.0938047]
[1768411796716,0.398,3369.6,3369.2,2.0938047]
[1768411796901,0.398,3369.5,3369.2,2.60001463]
[1768411797208,0.398,3369.5,3368.6,2.0938047]
[1768411797413,0.398,3369.5,3368.8,2.96840745]
[1768411797916,0.398,3369.5,3368.7,2.0938047]
[1768411798210,0.398,3369.5,3368.6,2.96856037]
[1768411798411,0.398,3369.5,3368.7,0.85373754]
[1768411798980,3.36580157,3369.5,3368.5,2.60006592]
[1768411799180,0.398,3369.5,3368.5,5.56872299]
[1768411799413,2.56004884,3369.5,3368.5,5.56872299]
[1768411799910,5.5278488,3369.5,3368.5,2.60006592]
[1768411800111,2.56004884,3369.5,3368.5,2.60006592]
[1768411800318,2.16204884,3369.4,3367.9,2.0938047]
[1768411800521,2.16204884,3369.2,3368.0,5.06292584]
[1768411800827,2.96791771,3369.4,3368.1,2.0938047]
[1768411801111,2.96791771,3369.4,3369.0,0.001]
[1768411801296,5.12996655,3369.4,3369.0,0.001]
[1768411801802,2.16204884,3369.3,3369.0,0.001]
[1768411802114,2.16204884,3369.3,3367.8,2.96926116]
[1768411802316,2.16204884,3369.3,3367.9,2.96920205]
[1768411802513,2.16204884,3369.0,3367.9,0.80313805]
[1768411802686,2.56004884,3368.9,3367.4,2.0938047]
[1768411802889,2.56004884,3368.9,3367.1,2.0938047]
[1768411803099,2.56004884,3368.9,3367.3,2.96970076]
[1768411803717,2.56004884,3368.9,3367.4,2.96956889]
[1768411804022,2.56004884,3368.9,3367.3,2.96970639]
[1768411804229,2.16204884,3368.7,3367.4,0.80334077]
[1768411804388,2.16204884,3368.7,3367.1,2.0938047]
[1768411804712,2.16204884,3368.5,3367.2,2.96982656]
[1768411804914,2.56004884,3368.4,3367.2,2.96982656]
[1768411805623,2.56004884,3368.4,3366.4,2.0938047]
[1768411805906,2.56004884,3368.4,3365.1,6.61123473]
[1768411805907,2.25237356,3367.9,3365.7,2.0938047]
[1768411806108,2.25237356,3367.9,3365.7,2.30318517]
[1768411806109,2.16204884,3367.7,3365.7,2.30318517]
[1768411806287,2.16204884,3367.7,3365.8,2.9710298]
[1768411806482,0.83834471,3367.8,3365.7,2.30318517]
[1768411806483,2.16204884,3367.5,3365.7,0.20938047]
[1768411806684,2.16204884,3367.3,3365.7,3.18052952]
[1768411806936,2.16204884,3367.1,3365.8,2.70897362]
[1768411808121,2.16204884,3367.1,3365.8,0.11566892]
[1768411808327,2.15575322,3367.1,3365.8,0.11566892]
[1768411808623,1.20813492,3367.2,3365.1,5.0654291]
[1768411808624,2.16204884,3366.9,3365.1,5.0654291]
[1768411808842,2.16204884,3366.9,3365.1,2.0938047]
[1768411809430,2.16204884,3366.7,3365.2,2.0938047]
[1768411810738,2.16204884,3366.5,3365.2,2.0938047]
[1768411811060,2.16204884,3366.5,3364.7,2.0938047]
[1768411811328,2.16204884,3366.3,3364.8,0.20938047]
[1768411811500,2.16204884,3366.1,3364.4,5.06603948]
[1768411811931,2.16204884,3365.9,3364.5,2.97219585]
[1768411812092,0.81027605,3366.4,3363.7,0.128]
[1768411812093,0.398,3365.8,3364.8,2.0938047]
[1768411812290,0.81027605,3366.4,3365.3,2.0938047]
[1768411812524,0.81027605,3366.4,3365.4,0.50653538]
[1768411812525,0.398,3366.3,3365.4,0.50653538]
[1768411812898,0.398,3366.3,3365.2,2.97157144]
[1768411813093,2.16204884,3366.8,3365.5,2.0938047]
[1768411813297,2.16204884,3367.1,3365.5,2.0938047]
[1768411813532,0.399,3367.0,3365.5,2.0938047]
[1768411813725,2.56104884,3367.0,3365.5,2.0938047]
[1768411813908,2.16204884,3366.9,3365.6,0.80367098]
[1768411814614,2.16204884,3366.7,3365.0,2.0948047]
[1768411815934,2.25237356,3366.7,3365.0,0.001]
[1768411816136,2.16204884,3366.4,3365.0,0.001]
[1768411816299,2.16204884,3366.2,3365.0,0.001]
[1768411816699,2.16204884,3366.0,3365.0,0.001]
[1768411816910,2.16204884,3365.8,3365.0,0.001]
[1768411817116,0.399,3365.7,3365.0,0.001]
[1768411817315,2.56104884,3365.7,3365.0,0.001]
[1768411819623,2.97123841,3365.6,3365.0,0.001]
[1768411819946,2.16204884,3365.5,3365.0,0.001]
[1768411820143,3.41140141,3365.4,3365.0,0.001]
[1768411820333,2.15259044,3365.3,3363.8,0.01402762]
[1768411820642,0.399,3365.2,3363.9,5.08075664]
[1768411821625,3.37062438,3365.2,3363.9,5.08075664]
[1768411821934,0.399,3365.1,3364.0,2.10802849]
[1768411822134,0.399,3365.1,3364.1,0.80535701]
[1768411822812,0.399,3365.1,3363.8,2.97282676]
[1768411823012,0.399,3365.1,3363.9,2.97270661]
[1768411823246,0.399,3365.1,3363.8,2.10802849]
[1768411823619,2.9717682,3365.0,3363.8,5.08082237]
[1768411824146,0.399,3364.9,3363.9,2.10802849]
[1768411824314,0.399,3364.9,3364.0,0.80537035]
[1768411824515,0.399,3364.9,3363.6,2.10802849]
[1768411824745,2.4763181,3364.9,3363.6,2.10802849]
[1768411824923,2.4763181,3364.9,3363.3,2.10802849]
[1768411825242,8.91510267,3365.1,3361.9,11.78977187]
[1768411825243,0.399,3364.8,3363.7,2.97286495]
[1768411825442,0.399,3364.8,3363.6,5.08101537]
[1768411825640,2.97203316,3364.7,3363.7,0.80541945]
[1768411825847,8.02138442,3364.7,3363.4,2.10802849]
[1768411826220,8.02138442,3364.7,3363.4,5.08119339]
[1768411826418,5.04935126,3364.7,3363.4,5.08119339]
[1768411826644,8.02138442,3364.7,3363.4,2.10802849]
[1768411827036,2.0773181,3364.6,3363.0,2.97348476]
[1768411827351,0.84203844,3364.5,3363.4,2.10802849]
[1768411827644,2.97238652,3364.3,3363.2,2.97330478]
[1768411827857,0.399,3364.2,3363.3,2.10802849]
[1768411828051,0.399,3364.1,3363.3,2.10802849]
[1768411828217,0.399,3364.0,3363.5,2.10802849]
[1768411828420,0.002,3364.8,3363.2,5.94666348]
[1768411828421,0.399,3363.9,3363.6,2.31883134]
[1768411828618,0.10357934,3363.8,3363.6,2.31883134]
[1768411828930,5.79704326,3365.2,3363.8,2.50702849]
[1768411829349,0.399,3365.1,3363.8,2.50702849]
[1768411829650,0.399,3365.0,3364.0,2.10802849]
[1768411829852,2.97185651,3364.9,3364.1,2.31883134]
[1768411830054,3.37079817,3365.0,3364.1,2.31883134]
[1768411830355,3.37079817,3365.0,3364.1,0.21080285]
[1768411830558,6.34259634,3365.0,3364.1,0.21080285]
[1768411831235,0.0371482,3364.9,3364.1,0.21080285]
[1768411831557,6.34259634,3365.0,3363.8,2.10802849]
[1768411831764,6.34259634,3365.0,3363.1,0.50815133]
[1768411831765,0.399,3364.9,3364.0,2.10802849]
[1768411831975,0.399,3364.8,3364.0,2.10802849]
[1768411832273,0.03715041,3364.7,3363.4,2.9730947]
[1768411832427,0.399,3364.8,3363.6,2.10802849]
[1768411832629,2.97159158,3365.2,3363.8,2.97282706]
[1768411832853,0.399,3365.1,3364.1,2.10802849]
[1768411833248,2.97159158,3365.2,3364.1,2.10802849]